bitfinex-derivatives/quotes_BTCF0:USTF0_20250510
["timestamp","ask_amount","ask_price","bid_price","bid_amount"]
[1746843538319,1.25778266,103020.0,103010.0,0.26293512]
[1746843544621,1.25778266,103020.0,103010.0,0.43766662]
[1746843545818,1.30539863,103020.0,103010.0,0.43766662]
[1746843546010,0.8773,103020.0,103010.0,0.43766662]
[1746843546314,0.5712146,103020.0,103010.0,0.85061625]
[1746843546616,0.5712146,103020.0,103010.0,0.76473986]
[1746843546821,0.5712146,103020.0,103010.0,0.77943519]
[1746843547321,0.64239863,103020.0,103010.0,0.77943519]
[1746843547725,0.64039863,103020.0,103010.0,0.77943519]
[1746843547922,0.64039863,103020.0,103010.0,0.78043519]
[1746843548115,0.64039863,103020.0,103010.0,0.89911519]
[1746843548625,0.63739863,103020.0,103010.0,0.90011519]
[1746843549518,0.5662146,103020.0,103010.0,0.90011519]
[1746843550027,0.5734946,103020.0,103010.0,0.90011519]
[1746843550421,0.5734946,103020.0,103010.0,0.90012796]
[1746843552127,0.2126946,103020.0,103010.0,0.90014069]
[1746843552519,0.2126946,103020.0,103010.0,0.89710557]
[1746843552925,0.1819946,103020.0,103010.0,0.89710557]
[1746843554027,0.2144946,103020.0,103010.0,0.89711631]
[1746843555726,0.2144946,103020.0,103010.0,0.89713156]
[1746843558728,0.2144946,103020.0,103010.0,0.90016627]
[1746843562425,0.2144946,103020.0,103010.0,0.89713156]
[1746843562632,0.28567863,103020.0,103010.0,0.86703156]
[1746843562832,0.31787863,103020.0,103010.0,0.89763156]
[1746843563734,0.31787863,103020.0,103010.0,0.90066631]
[1746843563937,0.31987863,103020.0,103010.0,0.89966631]
[1746843564328,0.31987863,103020.0,103010.0,0.89866631]
[1746843565127,0.31787863,103020.0,103010.0,0.89866631]
[1746843566539,0.31787863,103020.0,103010.0,0.89866637]
[1746843569338,0.31982,103020.0,103010.0,0.89866637]
[1746843570240,0.24863597,103020.0,103010.0,0.89866637]
[1746843575044,0.21643597,103020.0,103010.0,1.3306504]
[1746843576046,0.21643597,103020.0,103010.0,1.32761565]
[1746843581248,0.21643597,103020.0,103010.0,1.32762119]
[1746843583152,0.21643597,103020.0,103010.0,1.32761978]
[1746843586651,0.21643597,103020.0,103010.0,1.32761774]
[1746843588553,0.21643597,103020.0,103010.0,1.32761724]
[1746843595857,0.21643597,103020.0,103010.0,1.32761703]
[1746843597158,0.24953597,103020.0,103010.0,1.32761703]
[1746843597762,0.24953597,103020.0,103010.0,1.32761815]
[1746843599763,0.24953597,103020.0,103010.0,0.96681815]
[1746843599962,0.24953597,103020.0,103010.0,1.32761815]
[1746843604473,0.24953597,103020.0,103010.0,1.32763078]
[1746843606274,0.24953597,103020.0,103010.0,1.32763257]
[1746843608277,0.24953597,103020.0,103010.0,1.32763276]
[1746843608776,0.24953597,103020.0,103010.0,1.25644873]
[1746843609666,0.28103597,103020.0,103010.0,1.32763276]
[1746843610071,0.28103597,103020.0,103010.0,1.16163281]
[1746843611086,0.28103597,103020.0,103010.0,1.32763281]
[1746843611880,0.28103597,103020.0,103010.0,1.32763294]
[1746843612479,0.28103597,103020.0,103010.0,1.31286877]
[1746843613681,0.28103597,103020.0,103010.0,1.24168474]
[1746843613979,0.28103597,103020.0,103010.0,1.31286877]
[1746843614372,0.24953597,103020.0,103010.0,1.31286877]
[1746843625685,0.04172137,103020.0,103010.0,1.31286877]
[1746843625993,0.21643597,103020.0,103010.0,1.31286877]
[1746843626289,0.00922137,103020.0,103010.0,1.3840528]
[1746843626685,0.00922137,103020.0,103010.0,1.7311248]
[1746843627088,0.00922137,103020.0,103010.0,1.8311248]
[1746843627898,7e-08,103020.0,103010.0,1.8341248]
[1746843628392,7e-08,103020.0,103010.0,1.5881248]
[1746843629186,0.00100007,103020.0,103010.0,1.5901248]
[1746843629495,0.00100007,103020.0,103010.0,1.5921248]
[1746843629691,7e-08,103020.0,103010.0,1.5921248]
[1746843630997,7e-08,103020.0,103010.0,1.79007544]
[1746843636995,7e-08,103030.0,103020.0,0.1747146]
[1746843637195,7e-08,103030.0,103020.0,1.23978266]
[1746843637393,0.0326,103040.0,103030.0,0.1746976]
[1746843637697,0.0332,103060.0,103050.0,0.1746637]
[1746843637896,0.0636,103060.0,103050.0,1.21682773]
[1746843638091,0.0636,103060.0,103050.0,1.54089154]
[1746843639189,0.0646,103060.0,103050.0,1.54089154]
[1746843640195,0.0646,103060.0,103050.0,1.54289154]
[1746843640798,0.0636,103060.0,103050.0,1.5524541]
[1746843640997,0.0941,103060.0,103050.0,1.5554541]
[1746843641199,0.0609,103060.0,103050.0,1.5554541]
[1746843641388,0.0609,103060.0,103050.0,1.9162541]
[1746843641589,0.0609,103060.0,103050.0,1.98743813]
[1746843641590,0.0305,103060.0,103050.0,1.98743813]
[1746843641794,0.0305,103060.0,103050.0,1.9162541]
[1746843644497,0.0305,103060.0,103050.0,1.98743813]
[1746843648394,0.03757,103070.0,103060.0,0.1746468]
[1746843648598,0.03757,103070.0,103060.0,1.08281486]
[1746843649098,0.03757,103070.0,103060.0,1.17985042]
[1746843649802,0.03957,103070.0,103060.0,1.17985042]
[1746843650695,0.03957,103070.0,103060.0,1.18085042]
[1746843651398,0.03957,103070.0,103060.0,1.17985042]
[1746843651593,0.07157,103070.0,103060.0,1.18285042]
[1746843652297,0.06957,103070.0,103060.0,1.18285042]
[1746843652498,0.06957,103070.0,103060.0,1.19738312]
[1746843653695,0.10097,103070.0,103060.0,1.19738312]
[1746843658101,0.10097,103070.0,103060.0,1.55818312]
[1746843662710,0.06957,103070.0,103060.0,1.55818312]
[1746843672316,0.10227,103070.0,103060.0,1.72511909]
[1746843672613,0.10227,103070.0,103060.0,1.79630312]
[1746843677917,0.10227,103070.0,103060.0,1.67730312]
[1746843678122,0.10227,103070.0,103060.0,1.76612312]
[1746843678320,0.26827,103070.0,103060.0,1.76612312]
[1746843679421,0.26827,103070.0,103060.0,1.79862312]
[1746843682127,0.10227,103070.0,103060.0,1.79862312]
[1746843684630,0.10227,103070.0,103060.0,1.72743909]
[1746843684931,0.10227,103070.0,103060.0,1.79862312]
[1746843685431,0.10227,103070.0,103060.0,1.07702312]
[1746843685629,0.10227,103070.0,103060.0,1.79862312]
[1746843686627,0.10227,103070.0,103060.0,1.94671831]
[1746843686831,0.095,103070.0,103060.0,1.94671831]
[1746843687229,0.095,103070.0,103060.0,1.87553428]
[1746843687428,0.095,103070.0,103060.0,1.94671831]
[1746843687930,0.095,103070.0,103060.0,1.87553428]
[1746843688228,0.095,103070.0,103060.0,1.15393428]
[1746843688420,0.095,103070.0,103060.0,1.87553428]
[1746843688821,0.095,103070.0,103060.0,3.03721428]
[1746843689429,0.095,103070.0,103060.0,3.10839831]
[1746843689630,0.095,103070.0,103060.0,3.10843831]
[1746843689827,0.095,103070.0,103060.0,2.96607025]
[1746843690023,0.095,103070.0,103060.0,3.10843831]
[1746843690832,0.10227,103070.0,103060.0,3.10843831]
[1746843692531,0.10227,103070.0,103060.0,3.03725428]
[1746843694430,0.10227,103070.0,103060.0,3.10843831]
[1746843698135,0.23557,103070.0,103060.0,3.10843831]
[1746843699138,0.06957,103070.0,103060.0,3.10843831]
[1746843700339,0.06957,103070.0,103060.0,2.96607025]
[1746843700534,0.06957,103070.0,103060.0,3.10843831]
[1746843704749,0.06957,103070.0,103060.0,2.96034312]
[1746843708150,0.23557,103070.0,103060.0,2.96034312]
[1746843709145,0.06957,103070.0,103060.0,2.96034312]
[1746843716049,0.06957,103070.0,103060.0,3.10843831]
[1746843717147,0.23557,103070.0,103060.0,3.10843831]
[1746843718155,0.06957,103070.0,103060.0,3.10843831]
[1746843721353,0.06957,103070.0,103060.0,2.96607025]
[1746843721560,0.06957,103070.0,103060.0,3.10843831]
[1746843725051,0.06957,103070.0,103060.0,2.96607025]
[1746843725256,0.06957,103070.0,103060.0,3.10843831]
[1746843727159,0.23557,103070.0,103060.0,3.10843831]
[1746843728254,0.06957,103070.0,103060.0,3.10843831]
[1746843730448,0.06957,103070.0,103060.0,1.94675831]
[1746843731457,0.06957,103070.0,103060.0,1.80439025]
[1746843731753,0.2441998,103070.0,103060.0,1.68483025]
[1746843731956,0.2742998,103070.0,103060.0,1.84359428]
[1746843732255,0.09967,103070.0,103060.0,1.84359428]
[1746843732657,0.09967,103070.0,103060.0,1.87609428]
[1746843733959,0.09967,103070.0,103060.0,1.94727831]
[1746843734364,0.09967,103070.0,103060.0,1.87609428]
[1746843735363,0.09967,103070.0,103060.0,1.94727831]
[1746843737065,0.09967,103070.0,103060.0,1.58647831]
[1746843737363,0.09967,103070.0,103060.0,1.60438312]
[1746843738271,0.09967,103070.0,103060.0,1.43838312]
[1746843740151,0.09967,103070.0,103060.0,1.60438312]
[1746843742064,0.06957,103070.0,103060.0,1.60438312]
[1746843743165,0.06957,103070.0,103060.0,1.43838312]
[1746843743966,0.06957,103070.0,103060.0,1.07758312]
[1746843744166,0.06957,103070.0,103060.0,1.60438312]
[1746843748179,0.06957,103070.0,103060.0,1.24358312]
[1746843748360,0.06957,103070.0,103060.0,1.60438312]
[1746843748965,0.06957,103070.0,103060.0,1.46201506]
[1746843749170,0.06957,103070.0,103060.0,1.53319909]
[1746843749374,0.06957,103070.0,103060.0,1.60438312]
[1746843751565,0.06957,103070.0,103060.0,1.75247831]
[1746843754879,0.06957,103070.0,103060.0,1.39167831]
[1746843755179,0.06957,103070.0,103060.0,1.75247831]
[1746843755478,0.06957,103070.0,103060.0,1.60438312]
[1746843757080,0.06957,103070.0,103060.0,1.43838312]
[1746843758280,0.06957,103070.0,103060.0,1.60438312]
[1746843761480,0.03757,103070.0,103060.0,1.60438312]
[1746843761680,0.00727,103070.0,103060.0,1.60438312]
[1746843761889,0.07117,103070.0,103060.0,1.60438312]
[1746843767185,0.07117,103070.0,103060.0,1.75247831]
[1746843772986,0.07117,103070.0,103060.0,1.39167831]
[1746843773185,0.07117,103070.0,103060.0,1.75247831]
[1746843782002,0.07117,103070.0,103060.0,1.68129428]
[1746843782493,0.07117,103070.0,103060.0,1.75247831]
[1746843784884,0.07117,103070.0,103060.0,1.68129428]
[1746843787594,0.07117,103070.0,103060.0,1.75247831]
[1746843787791,0.07117,103070.0,103060.0,2.75247831]
[1746843791017,0.07117,103070.0,103060.0,2.68129428]
[1746843802127,0.2457998,103070.0,103060.0,2.61011025]
[1746843802321,0.07117,103070.0,103060.0,2.61011025]
[1746843802624,0.07117,103070.0,103060.0,2.68129428]
[1746843803525,0.07117,103070.0,103060.0,2.61011025]
[1746843803825,0.2457998,103070.0,103060.0,2.57537025]
[1746843804027,0.2777998,103070.0,103060.0,2.57537025]
[1746843804227,0.2777998,103070.0,103060.0,2.40937025]
[1746843805324,0.2777998,103070.0,103060.0,2.44047025]
[1746843805516,0.2777998,103070.0,103060.0,2.51165428]
[1746843807135,0.2777998,103070.0,103060.0,2.67765428]
[1746843808625,0.2777998,103070.0,103060.0,2.60647025]
[1746843808927,0.2777998,103070.0,103060.0,2.67765428]
[1746843812934,0.2777998,103070.0,103060.0,2.31685428]
[1746843813121,0.2777998,103070.0,103060.0,2.67765428]
[1746843822137,0.2777998,103070.0,103060.0,2.60647025]
[1746843822326,0.2777998,103070.0,103060.0,2.67765428]
[1746843825634,0.2797998,103070.0,103060.0,2.67765428]
[1746843826937,0.2797998,103070.0,103060.0,2.67465428]
[1746843828036,0.2797998,103070.0,103060.0,2.60347025]
[1746843828336,0.2797998,103070.0,103060.0,2.67465428]
[1746843828637,0.2797998,103070.0,103060.0,2.60347025]
[1746843834143,0.2477998,103070.0,103060.0,2.60347025]
[1746843843947,0.2477998,103070.0,103060.0,2.45537506]
[1746843847350,0.2477998,103070.0,103060.0,2.09457506]
[1746843847544,0.2477998,103070.0,103060.0,2.45537506]
[1746843854755,0.2477998,103070.0,103060.0,2.60347025]
[1746843857460,0.00927,103070.0,103060.0,2.67465428]
[1746843863469,0.1838998,103070.0,103060.0,2.67465428]
[1746843863663,0.2486998,103070.0,103060.0,2.67465428]
[1746843866567,0.2486998,103070.0,103060.0,2.52655909]
[1746843867969,0.07407,103070.0,103060.0,2.52655909]
[1746843868158,0.2486998,103070.0,103060.0,2.52655909]
[1746843871270,0.2486998,103070.0,103060.0,2.45537506]
[1746843871456,0.2486998,103070.0,103060.0,2.52655909]
[1746843873063,0.2486998,103070.0,103060.0,2.67465428]
[1746843874772,0.07407,103070.0,103060.0,2.67465428]
[1746843874966,0.2486998,103070.0,103060.0,2.67465428]
[1746843877770,0.07407,103070.0,103060.0,2.67465428]
[1746843877972,0.2486998,103070.0,103060.0,2.67465428]
[1746843879372,0.2486998,103070.0,103060.0,2.55617428]
[1746843882976,0.2486998,103070.0,103060.0,2.19537428]
[1746843883174,0.2486998,103070.0,103060.0,2.55617428]
[1746843885375,0.07407,103070.0,103060.0,2.55617428]
[1746843885575,0.2486998,103070.0,103060.0,2.55617428]
[1746843888178,0.2486998,103070.0,103060.0,2.19537428]
[1746843888376,0.2486998,103070.0,103060.0,2.55617428]
[1746843890880,0.2486998,103070.0,103060.0,2.19537428]
[1746843891178,0.2486998,103070.0,103060.0,2.55617428]
[1746843894481,0.2486998,103070.0,103060.0,2.40807909]
[1746843897670,0.07407,103070.0,103060.0,2.40807909]
[1746843898778,0.2486998,103070.0,103060.0,2.40807909]
[1746843900684,0.2486998,103070.0,103060.0,2.33689506]
[1746843900883,0.2486998,103070.0,103060.0,2.40807909]
[1746843901187,0.2486998,103070.0,103060.0,2.33689506]
[1746843901379,0.2486998,103070.0,103060.0,2.40807909]
[1746843905495,0.31988383,103070.0,103060.0,1.79551506]
[1746843905685,0.62198383,103070.0,103060.0,1.65391506]
[1746843905881,0.98278383,103070.0,103060.0,1.60391506]
[1746843906086,0.98278383,103070.0,103060.0,1.31951506]
[1746843906395,0.98278383,103070.0,103060.0,1.58601025]
[1746843908104,0.98278383,103070.0,103060.0,1.46761025]
[1746843911698,0.98278383,103070.0,103060.0,1.31951506]
[1746843913006,0.62198383,103070.0,103060.0,1.31951506]
[1746843913207,0.98278383,103070.0,103060.0,1.31951506]
[1746843915898,0.9115998,103070.0,103060.0,1.31951506]
[1746843916294,0.98278383,103070.0,103060.0,1.14486826]
[1746843916599,0.98278383,103070.0,103060.0,1.0478327]
[1746843917108,1.14878383,103070.0,103060.0,1.0478327]
[1746843921009,1.24581183,103070.0,103060.0,1.0145327]
[1746843921195,1.25561814,103070.0,103060.0,1.0145327]
[1746843921695,1.25561814,103070.0,103060.0,1.0]
[1746843921908,1.37393814,103070.0,103060.0,1.0]
[1746843922100,1.20793814,103070.0,103060.0,1.0]
[1746843922908,1.19813183,103070.0,103060.0,1.0]
[1746843923095,1.36413183,103070.0,103060.0,1.0309]
[1746843925209,1.20805486,103070.0,103060.0,1.0309]
[1746843925611,1.22292355,103070.0,103060.0,1.0]
[1746843926205,1.38892355,103070.0,103060.0,1.0]
[1746843926506,1.29189555,103070.0,103060.0,1.0]
[1746843926912,1.29189555,103070.0,103060.0,1.0303]
[1746843929412,1.21078849,103070.0,103060.0,1.0303]
[1746843929614,1.28197252,103070.0,103060.0,1.0303]
[1746843929808,1.21078849,103070.0,103060.0,1.0303]
[1746843930010,1.28197252,103070.0,103060.0,1.0629]
[1746843931710,1.28197252,103070.0,103060.0,1.0948]
[1746843935220,1.11597252,103070.0,103060.0,1.0948]
[1746843935611,1.23859439,103070.0,103060.0,1.0948]
[1746843935813,1.24059439,103070.0,103060.0,1.0948]
[1746843936216,1.24059439,103070.0,103060.0,1.2608]
[1746843936521,1.24159439,103070.0,103060.0,1.2608]
[1746843937113,1.24159439,103070.0,103060.0,1.0948]
[1746843946931,1.60239439,103070.0,103060.0,1.0948]
[1746843949534,1.47977252,103070.0,103060.0,1.0948]
[1746843953125,1.60239439,103070.0,103060.0,1.0948]
[1746843955929,0.88079439,103070.0,103060.0,1.0948]
[1746843956133,1.60239439,103070.0,103060.0,1.0948]
[1746843963141,1.60239439,103070.0,103060.0,1.2608]
[1746843964137,1.60239439,103070.0,103060.0,1.0948]
[1746843967433,1.60339439,103070.0,103060.0,1.0948]
[1746843971943,1.5885257,103070.0,103060.0,1.0948]
[1746843973447,1.61433687,103070.0,103060.0,1.0948]
[1746843977746,1.46590383,103070.0,103060.0,1.0948]
[1746843981046,1.58958116,103070.0,103060.0,1.0948]
[1746843985150,1.53161717,103070.0,103060.0,1.2608]
[1746843986149,1.53161717,103070.0,103060.0,1.0948]
[1746843987048,1.53161717,103070.0,103060.0,1.2608]
[1746843988150,1.53161717,103070.0,103060.0,1.0948]
[1746843989154,1.53161717,103070.0,103060.0,1.2608]
[1746843990251,1.53161717,103070.0,103060.0,1.0948]
[1746843990750,0.81001717,103070.0,103060.0,1.0948]
[1746843990956,1.53161717,103070.0,103060.0,1.0948]
[1746843993164,1.53161717,103070.0,103060.0,1.2608]
[1746843993360,1.38119717,103070.0,103060.0,1.2608]
[1746843993553,1.49935717,103070.0,103060.0,1.35782614]
[1746843995755,1.55732481,103070.0,103060.0,1.35782614]
[1746843999162,1.48614078,103070.0,103060.0,1.35782614]
[1746843999359,1.55732481,103070.0,103060.0,1.35782614]
[1746844009170,1.58792481,103070.0,103060.0,1.35782614]
[1746844012172,0.86632481,103070.0,103060.0,1.35782614]
[1746844012362,1.58792481,103070.0,103060.0,1.35782614]
[1746844015182,1.73634198,103070.0,103060.0,1.35782614]
[1746844017984,1.58792481,103070.0,103060.0,1.35782614]
[1746844020883,1.51674078,103070.0,103060.0,1.35782614]
[1746844021178,1.58792481,103070.0,103060.0,1.35782614]
[1746844023877,1.51674078,103070.0,103060.0,1.35782614]
[1746844024083,1.51662078,103070.0,103060.0,1.35782614]
[1746844024285,1.58780481,103070.0,103060.0,1.35782614]
[1746844029085,1.73622198,103070.0,103060.0,1.35782614]
[1746844031588,1.612541,103070.0,103060.0,1.35782614]
[1746844037990,1.58770642,103070.0,103060.0,1.35782614]
[1746844042596,1.58766642,103070.0,103060.0,1.35782614]
[1746844044195,1.54766642,103070.0,103060.0,1.35782614]
[1746844047397,1.57916642,103070.0,103060.0,1.35782614]
[1746844049198,0.85756642,103070.0,103060.0,1.35782614]
[1746844049399,1.57916642,103070.0,103060.0,1.35782614]
[1746844051098,0.85756642,103070.0,103060.0,1.35782614]
[1746844051286,1.57916642,103070.0,103060.0,1.35782614]
[1746844054895,1.66981471,103070.0,103060.0,1.35782614]
[1746844055399,0.94821471,103070.0,103060.0,1.35782614]
[1746844055594,1.66981471,103070.0,103060.0,1.35782614]
[1746844057604,1.52139754,103070.0,103060.0,1.35782614]
[1746844058103,1.52139754,103070.0,103060.0,1.19182614]
[1746844059104,1.52139754,103070.0,103060.0,1.35782614]
[1746844060608,1.45558383,103070.0,103060.0,1.35782614]
[1746844063206,1.45558383,103070.0,103060.0,1.19182614]
[1746844064904,1.52139754,103070.0,103060.0,1.19182614]
[1746844065307,1.59258157,103070.0,103060.0,1.0303]
[1746844066012,1.59258157,103070.0,103060.0,0.9313187]
[1746844067109,1.59258157,103070.0,103060.0,0.8752582]
[1746844067296,1.59258157,103070.0,103060.0,0.8150291]
[1746844067907,1.59258157,103070.0,103060.0,0.751158]
[1746844068109,1.59258157,103070.0,103060.0,0.7833478]
[1746844068310,1.59258157,103070.0,103060.0,0.6974256]
[1746844068810,1.60681785,103070.0,103060.0,0.6189832]
[1746844069004,1.60681785,103070.0,103060.0,0.5278416]
[1746844069204,1.54100414,103070.0,103060.0,0.1979043]
[1746844069404,1.54100414,103070.0,103060.0,0.1116945]
[1746844069608,0.1746468,103060.0,103050.0,0.0621]
[1746844069805,1.11531486,103060.0,103050.0,0.0621]
[1746844070903,1.08301486,103060.0,103050.0,0.0621]
[1746844071102,1.09028486,103060.0,103050.0,0.0621]
[1746844071902,1.09128486,103060.0,103050.0,0.0621]
[1746844072813,1.21484269,103060.0,103050.0,0.0621]
[1746844073004,1.21484269,103060.0,103050.0,0.0938]
[1746844073205,1.21484269,103060.0,103050.0,0.2598]
[1746844074418,1.14365866,103060.0,103050.0,0.2598]
[1746844081225,1.17695866,103060.0,103050.0,0.2598]
[1746844081620,1.24814269,103060.0,103050.0,0.2598]
[1746844083628,1.17695866,103060.0,103050.0,0.2598]
[1746844084131,1.17695866,103060.0,103050.0,0.0938]
[1746844084324,1.15220069,103060.0,103050.0,0.0938]
[1746844084628,1.51300069,103060.0,103050.0,0.0938]
[1746844085123,1.58418472,103060.0,103050.0,0.2598]
[1746844085327,1.58418472,103060.0,103050.0,0.1977]
[1746844086018,1.58418472,103060.0,103050.0,0.2279]
[1746844086221,1.58418472,103060.0,103050.0,0.0619]
[1746844087517,1.70774255,103060.0,103050.0,0.0619]
[1746844089033,1.70774255,103060.0,103050.0,0.0934]
[1746844089232,1.70774255,103060.0,103050.0,0.2594]
[1746844089934,1.63655852,103060.0,103050.0,0.2594]
[1746844091234,1.51300069,103060.0,103050.0,0.2594]
[1746844099344,1.53775866,103060.0,103050.0,0.2594]
[1746844100440,1.53775866,103060.0,103050.0,0.27448329]
[1746844100840,1.53775866,103060.0,103050.0,0.2594]
[1746844101140,1.53775866,103060.0,103050.0,0.27448372]
[1746844102635,1.53775866,103060.0,103050.0,0.27450175]
[1746844103638,1.19775866,103060.0,103050.0,0.27450175]
[1746844103840,1.34775866,103060.0,103050.0,0.27450175]
[1746844107942,1.34775866,103060.0,103050.0,0.2745019]
[1746844108341,1.37251856,103060.0,103050.0,0.2745019]
[1746844108540,1.37251856,103060.0,103050.0,0.2594]
[1746844110539,1.58251856,103060.0,103050.0,0.27450193]
[1746844112245,0.86091856,103060.0,103050.0,0.27450193]
[1746844112437,1.58251856,103060.0,103050.0,0.27450193]
[1746844114047,0.86091856,103060.0,103050.0,0.27450193]
[1746844114237,1.58251856,103060.0,103050.0,0.27450193]
[1746844115146,1.55782988,103060.0,103050.0,0.27450193]
[1746844118552,1.55782988,103060.0,103050.0,0.27450406]
[1746844119450,1.62901391,103060.0,103050.0,0.27450406]
[1746844119754,1.55782988,103060.0,103050.0,0.27450406]
[1746844120652,1.55782988,103060.0,103050.0,0.27450424]
[1746844122158,1.55055988,103060.0,103050.0,0.27450424]
[1746844122458,1.55055988,103060.0,103050.0,0.27450425]
[1746844123355,1.47937585,103060.0,103050.0,0.27450425]
[1746844123556,1.55055988,103060.0,103050.0,0.27450425]
[1746844125462,1.55782988,103060.0,103050.0,0.27450425]
[1746844126862,0.83622988,103060.0,103050.0,0.27450425]
[1746844127057,1.55782988,103060.0,103050.0,0.27450425]
[1746844131461,1.48664585,103060.0,103050.0,0.27450159]
[1746844131764,1.55782988,103060.0,103050.0,0.27450159]
[1746844132254,0.83622988,103060.0,103050.0,0.27450159]
[1746844132455,1.55782988,103060.0,103050.0,0.27450159]
[1746844133667,0.83622988,103060.0,103050.0,0.27450159]
[1746844133872,1.55782988,103060.0,103050.0,0.27450159]
[1746844134668,1.53311022,103060.0,103050.0,0.27450159]
[1746844137971,1.46192619,103060.0,103050.0,0.27450159]
[1746844138171,1.53311022,103060.0,103050.0,0.27450159]
[1746844141774,1.53311022,103060.0,103050.0,0.27449841]
[1746844143376,1.53311022,103060.0,103050.0,0.27449832]
[1746844145776,1.58251856,103060.0,103050.0,0.27449832]
[1746844149678,1.58351856,103060.0,103050.0,0.27449832]
[1746844149877,1.58551856,103060.0,103050.0,0.27449832]
[1746844150478,1.58551856,103060.0,103050.0,0.2744981]
[1746844150877,1.51433453,103060.0,103050.0,0.2744981]
[1746844151076,1.58551856,103060.0,103050.0,0.2744981]
[1746844152281,1.65032763,103060.0,103050.0,0.2744981]
[1746844155779,1.70919401,103060.0,103050.0,0.2744981]
[1746844155981,1.56087628,103060.0,103050.0,0.2744981]
[1746844157781,1.56087628,103060.0,103050.0,0.27449792]
[1746844160983,0.83927628,103060.0,103050.0,0.27449792]
[1746844161185,1.56087628,103060.0,103050.0,0.27449792]
[1746844161483,1.53614356,103060.0,103050.0,0.27449792]
[1746844164391,1.17614356,103060.0,103050.0,0.27449792]
[1746844164581,1.28614356,103060.0,103050.0,0.27449792]
[1746844164783,1.14975953,103060.0,103050.0,0.69153348]
[1746844165601,1.18155953,103060.0,103050.0,0.69153348]
[1746844165782,1.0826168,103060.0,103050.0,0.38153348]
[1746844166289,1.0806168,103060.0,103050.0,0.38153348]
[1746844166487,0.9065168,103060.0,103050.0,0.82271751]
[1746844167094,0.9045168,103060.0,103050.0,0.82271751]
[1746844167689,0.9045168,103060.0,103050.0,0.75153348]
[1746844170094,0.9045168,103060.0,103050.0,0.75152454]
[1746844171789,0.9045168,103060.0,103050.0,0.73643556]
[1746844171994,0.9045168,103060.0,103050.0,0.7515227]
[1746844172694,1.0034515,103060.0,103050.0,0.7015227]
[1746844173683,1.0034515,103060.0,103050.0,0.70152117]
[1746844175492,1.0034515,103060.0,103050.0,0.87618487]
[1746844175790,0.2818515,103060.0,103050.0,0.9473689]
[1746844176992,0.2818515,103060.0,103050.0,0.9493689]
[1746844177193,0.2808515,103060.0,103050.0,0.9503689]
[1746844178694,0.2808515,103060.0,103050.0,0.95035722]
[1746844179497,0.1819168,103060.0,103050.0,0.95035722]
[1746844189998,0.1819168,103060.0,103050.0,0.95035017]
[1746844191800,0.1819168,103060.0,103050.0,0.95035165]
[1746844192693,0.2132168,103060.0,103050.0,0.95035165]
[1746844193401,0.2132168,103060.0,103050.0,0.95035421]
[1746844193600,0.2434168,103060.0,103050.0,0.95035421]
[1746844194803,0.2434168,103060.0,103050.0,0.95035593]
[1746844200704,0.3423515,103060.0,103050.0,0.95035593]
[1746844203501,0.3423515,103060.0,103050.0,0.93528329]
[1746844203697,0.3423515,103060.0,103050.0,0.95036608]
[1746844207113,0.3423515,103060.0,103050.0,0.95037967]
[1746844208011,0.2434168,103060.0,103050.0,0.95037967]
[1746844215927,0.2434168,103060.0,103050.0,1.06785967]
[1746844221528,0.2434168,103060.0,103050.0,0.99667564]
[1746844221731,0.2759168,103060.0,103050.0,1.11407564]
[1746844221921,0.2759168,103060.0,103050.0,0.93497564]
[1746844222121,0.4419168,103060.0,103050.0,0.76897564]
[1746844222321,0.4419168,103060.0,103050.0,0.84015967]
[1746844222524,0.4419168,103060.0,103050.0,0.87315967]
[1746844222723,0.4419168,103060.0,103050.0,0.90345967]
[1746844223132,0.2759168,103060.0,103050.0,0.90345967]
[1746844224933,0.2759168,103060.0,103050.0,0.83227564]
[1746844226127,0.2759168,103060.0,103050.0,0.99827564]
[1746844227035,0.2759168,103060.0,103050.0,0.99827631]
[1746844227232,0.2759168,103060.0,103050.0,0.83227631]
[1746844229335,0.2759168,103060.0,103050.0,0.72879664]
[1746844229632,0.2759168,103060.0,103050.0,0.90346034]
[1746844230137,0.2759168,103060.0,103050.0,1.06946034]
[1746844230641,0.2759168,103060.0,103050.0,1.06945986]
[1746844231542,0.2759168,103060.0,103050.0,0.99827583]
[1746844231734,0.2759168,103060.0,103050.0,1.06945986]
[1746844234143,0.2759168,103060.0,103050.0,0.99827583]
[1746844234532,0.2759168,103060.0,103050.0,1.06945986]
[1746844236037,0.2759168,103060.0,103050.0,1.05436329]
[1746844236243,0.2759168,103060.0,103050.0,1.06945871]
[1746844237846,0.2759168,103060.0,103050.0,1.05436329]
[1746844238146,0.2759168,103060.0,103050.0,1.06945841]
[1746844238347,0.2759168,103060.0,103050.0,0.99827438]
[1746844238649,0.2759168,103060.0,103050.0,1.06945841]
[1746844241553,0.2759168,103060.0,103050.0,1.06945816]
[1746844243449,0.2759168,103060.0,103050.0,1.06945827]
[1746844245257,0.2759168,103060.0,103050.0,1.06945823]
[1746844245857,0.2759168,103060.0,103050.0,0.9982742]
[1746844246056,0.2759168,103060.0,103050.0,1.06945823]
[1746844247862,0.3748515,103060.0,103050.0,1.06945823]
[1746844248860,0.3748515,103060.0,103050.0,1.06946053]
[1746844250658,0.3748515,103060.0,103050.0,1.0694605]
[1746844251059,0.3423515,103060.0,103050.0,1.0694605]
[1746844252765,0.3423515,103060.0,103050.0,1.0694606]
[1746844255865,0.2434168,103060.0,103050.0,1.0694606]
[1746844257464,0.2434168,103060.0,103050.0,0.99827657]
[1746844257667,0.2434168,103060.0,103050.0,1.0694606]
[1746844259159,0.3423515,103060.0,103050.0,1.0694606]
[1746844262868,0.3423515,103060.0,103050.0,1.06946327]
[1746844264674,0.3423515,103060.0,103050.0,1.06946328]
[1746844265469,0.2434168,103060.0,103050.0,1.06946328]
[1746844266470,0.2434168,103060.0,103050.0,1.05436329]
[1746844266672,0.2434168,103060.0,103050.0,1.06946305]
[1746844269165,0.1819168,103060.0,103050.0,1.06946305]
[1746844271670,0.1819168,103060.0,103050.0,1.14064708]
[1746844271671,0.00727,103060.0,103050.0,1.14064708]
[1746844271868,0.00727,103060.0,103050.0,1.50144708]
[1746844272170,0.00727,103060.0,103050.0,1.59848308]
[1746844272567,0.00727,103060.0,103050.0,1.50144708]
[1746844273676,0.00727,103060.0,103050.0,1.50042656]
[1746844273877,0.00727,103060.0,103050.0,1.50442656]
[1746844274077,0.00827,103060.0,103050.0,1.50742656]
[1746844275580,0.00827,103060.0,103050.0,1.50742014]
[1746844276877,0.00827,103060.0,103050.0,1.65551533]
[1746844277583,0.00827,103060.0,103050.0,1.75551533]
[1746844277776,0.00827,103060.0,103050.0,1.65551533]
[1746844278078,0.00827,103060.0,103050.0,1.75551533]
[1746844279082,0.00827,103060.0,103050.0,1.75550849]
[1746844280180,0.00827,103060.0,103050.0,1.65550849]